lending/lending_fUSD_20251218
["ID","MTS","AMOUNT","RATE_DAILY","PERIOD"]
[398964349,1766028646413,-133.50298491,0.000165,2]
[398964351,1766028646430,-200.0,0.000165,2]
[398964353,1766028646450,-188.52932512,0.000165,2]
[398964355,1766028646460,-559.114866,0.000165,2]
[398964450,1766029324175,247.81,0.00010408,2]
[398964468,1766029832053,-500.0,0.00013373,2]
[398964469,1766029832063,-503.19,0.00013699,2]
[398964470,1766029832072,-479.841468,0.0001592,2]
[398964471,1766029832081,-300.0,0.00015999,2]
[398964472,1766029832090,-1200.0,0.00015999,2]
[398964473,1766029832100,-437.66096301,0.00016,2]
[398964474,1766029832111,-260.03248731,0.00016,2]
[398964475,1766029832122,-1713.16272951,0.00016,2]
[398964476,1766029832137,-1190.51079332,0.00016,2]
[398964477,1766029832148,-11367.31893508,0.00016,2]
[398964478,1766029832161,-9108.43118675,0.00016,2]
[398964479,1766029832172,-6648.53421972,0.00016,2]
[398964480,1766029832183,-19641.858148,0.00016,2]
[398964481,1766029832215,-518.0,0.00016,2]
[398964482,1766029832227,-322.59321388,0.00016,2]
[398964483,1766029832238,-391.32611071,0.00016,2]
[398964484,1766029832249,-830.99906,0.00016,2]
[398964485,1766029832261,-1618.14212,0.00016,2]
[398964486,1766029832277,-731.01688365,0.00016,2]
[398964487,1766029832287,-1053.03409589,0.00016,2]
[398964488,1766029832300,-1767.34463958,0.00016,2]
[398964505,1766029838168,-132499.5955343,0.00016,2]
[398964506,1766029838178,-416.43914201,0.00016202,2]
[398964507,1766029838188,-203.77230882,0.00016265,2]
[398964508,1766029838198,-1386.207,0.0001666,2]
[398964509,1766029838207,-170.567,0.0001666,2]
[398964510,1766029838216,-2703.93866685,0.000169,2]
[398964511,1766029838225,-5225.44266855,0.000169,2]
[398964512,1766029838234,-167.7700693,0.000169,2]
[398964513,1766029838243,-507.33450795,0.00016988,2]
[398964514,1766029838252,-500.0,0.00016988,2]
[398964515,1766029838261,-500.81759049,0.00016988,2]
[398964516,1766029838271,-505.36356381,0.00016988,2]
[398964517,1766029838281,-439.04531606,0.0001699,2]
[398964518,1766029838290,-178.23166975,0.00016992,2]
[398964519,1766029838300,-550.0,0.00016998,2]
[398964520,1766029838309,-500.0,0.00016999,2]
[398964521,1766029838319,-500.0,0.00016999,2]
[398964522,1766029838328,-500.0,0.00016999,2]
[398964523,1766029838337,-210.39646374,0.00016999,2]
[398964524,1766029838349,-289.60353626,0.00016999,2]
[398964525,1766029838358,-252.86255486,0.00016999,2]
[398964526,1766029838373,-290.33736291,0.00016999,2]
[398964527,1766029838382,-534.21399211,0.00016999,2]
[398964528,1766029838391,-150.0,0.00016999,2]
[398964529,1766029838401,-500.0,0.00016999,2]
[398964530,1766029838410,-500.0,0.00016999,2]
[398964531,1766029838419,-500.0,0.00016999,2]
[398964532,1766029838427,-500.0,0.00016999,2]
[398964533,1766029838437,-564.35975952,0.00016999,2]
[398964535,1766029838446,-526.18164908,0.00016999,2]
[398964537,1766029838455,-500.0,0.00016999,2]
[398964539,1766029838465,-504.93262399,0.00016999,2]
[398964541,1766029838474,-500.0,0.00016999,2]
[398964543,1766029838483,-500.0,0.00016999,2]
[398964545,1766029838492,-510.3926864,0.00016999,2]
[398964547,1766029838501,-534.37905897,0.00016999,2]
[398964549,1766029838510,-182.70253387,0.00016999,2]
[398964551,1766029838519,-25336.50033305,0.00017,2]
[398964553,1766029838531,-910.54959292,0.00017,2]
[398964556,1766029838550,-7721.99884469,0.00017,2]
[398964558,1766029838561,-3662.85766058,0.00017,2]
[398964691,1766029840229,-144444.48410535,0.00017,2]
[398964693,1766029840240,-258.39013124,0.00017,2]
[398964705,1766029840335,-725.91164319,0.00017,2]
[398964711,1766029840390,-324.4526,0.00017,2]
[398964724,1766029840496,-401341.81535964,0.00017,2]
[398964726,1766029840506,-416852.28611018,0.00017,2]
[398964728,1766029840515,-250.0,0.00017,2]
[398964730,1766029840525,-164.508361,0.00017,2]
[398964732,1766029840535,-16123.82532839,0.00017192,2]
[398964734,1766029840543,-300.0,0.00018103,2]
[398964736,1766029840553,-3144.33436259,0.000183,2]
[398964738,1766029840562,-323.3292229,0.0001843,2]
[398964740,1766029840571,-213.0,0.0001863,2]
[398964742,1766029840580,-323.3292229,0.00019432,2]
[398964744,1766029840589,-2703.93866681,0.00019577,2]
[398964746,1766029840598,-5225.44266853,0.00019577,2]
[398964748,1766029840607,-167.44206992,0.00019858,2]
[398964750,1766029840616,-500.0,0.00019858,2]
[398964752,1766029840627,-704.0,0.0001998,2]
[398964754,1766029840636,-1000.0,0.0002,2]
[398964756,1766029840646,-150.21371843,0.0002,20]
[398964758,1766029840655,-500.0,0.00020132,2]
[398964760,1766029840664,-503.19,0.00020187,2]
[398964762,1766029840672,-1111.18217587,0.00020228,2]
[398964764,1766029840681,-323.3292229,0.00020434,2]
[398964766,1766029840691,-323.3292229,0.00021436,2]
[398964767,1766029840700,-4069.09,0.00021513,2]
[398964769,1766029840709,-999.0,0.00021766,3]
[398964771,1766029840719,-1852.42,0.00021815,2]
[398964773,1766029840729,-5000.0,0.00021918,2]
[398964775,1766029840738,-500.0,0.00021918,2]
[398964777,1766029840747,-500.0,0.00021918,2]
[398964779,1766029840756,-500.0,0.00021918,2]
[398964781,1766029840765,-500.0,0.00021918,2]
[398964783,1766029840774,-500.0,0.00021918,2]
[398964785,1766029840783,-500.0,0.00021918,2]
[398964787,1766029840792,-500.0,0.00021918,2]
[398964789,1766029840801,-500.0,0.00021918,2]
[398964791,1766029840810,-1207.97,0.00022152,2]
[398964793,1766029840820,-2703.93866681,0.00022254,2]
[398964795,1766029840829,-5225.44266853,0.00022254,2]
[398964797,1766029840838,-200.0,0.00022434,2]
[398964799,1766029840847,-323.65255212,0.00022439,2]
[398964801,1766029840858,-200.0,0.00022723,2]
[398964803,1766029840867,-11184.0,0.00024363,2]
[398964805,1766029840876,-5156.13232495,0.00024621,2]
[398964807,1766029840886,-433.2,0.00024658,3]
[398964809,1766029840897,-500.0,0.00024799,2]
[398964811,1766029840906,-155.394469,0.000248,7]
[398964813,1766029840915,-164.22367,0.000248,7]
[398964815,1766029840925,-151.0,0.000248,7]
[398964817,1766029840936,-205366.143071,0.000248,2]
[398964819,1766029840945,-500.0,0.00024899,2]
[398964821,1766029840955,-151.0,0.000249,7]
[398964823,1766029840964,-151.0,0.000249,7]
[398964825,1766029840973,-151.0,0.000249,7]
[398964827,1766029840982,-151.0,0.000249,7]
[398964829,1766029840991,-189.99558,0.000249,7]
[398964831,1766029841000,-189.99558,0.000249,7]
[398964833,1766029841009,-189.99558,0.000249,7]
[398964835,1766029841019,-189.99558,0.000249,7]
[398964837,1766029841028,-397074.362174,0.000249,2]
[398964839,1766029841038,-1207.97,0.00024921,120]
[398964841,1766029841047,-2703.93866681,0.00024932,2]
[398964843,1766029841056,-5225.44266853,0.00024932,2]
[398964845,1766029841065,-178.23166973,0.00024995,2]
[398964847,1766029841074,-525.83,0.00025,2]
[398964850,1766029841083,-150.76,0.00025,2]
[398964852,1766029841093,-152.58,0.00025,2]
[398964854,1766029841102,-6525.0,0.00025405,2]
[398964856,1766029841112,-503.19,0.00026676,2]
[398964858,1766029841121,-300.0,0.00027397,2]
[398964860,1766029841130,-259.0,0.00027592,7]
[398964862,1766029841139,-2703.93866681,0.00027609,2]
[398964864,1766029841148,-5225.44266853,0.00027609,2]
[398964866,1766029841157,-1207.97,0.0002769,120]
[398964868,1766029841166,-259.0,0.00027709,2]
[398964870,1766029841175,-256.0,0.00027742,2]
[398964872,1766029841184,-259.0,0.0002781,2]
[398964874,1766029841193,-256.0,0.00028156,2]
[398964876,1766029841202,-1690.578,0.00028405,2]
[398964878,1766029841211,-256.0,0.00028521,2]
[398964880,1766029841220,-168.0,0.00028703,2]
[398964882,1766029841229,-256.0,0.0002879,7]
[398964884,1766029841239,-300.0,0.0002883,2]
[398964886,1766029841247,-256.0,0.00029123,2]
[398964888,1766029841256,-256.0,0.00029206,2]
[398964890,1766029841266,-259.0,0.00029223,2]
[398964892,1766029841275,-256.0,0.00029275,2]
[398964894,1766029841284,-168.0,0.00029316,2]
[398964896,1766029841294,-646.72,0.00029502,30]
[398964898,1766029841303,-256.0,0.00029613,2]
[398964900,1766029841312,-256.0,0.00029627,7]
[398964902,1766029841321,-256.0,0.00029633,2]
[398964904,1766029841331,-259.0,0.00029672,2]
[398964906,1766029841340,-256.0,0.00029757,2]
[398964908,1766029841349,-259.0,0.00029783,2]
[398964910,1766029841358,-256.0,0.00029907,2]
[398964912,1766029841367,-256.0,0.00029972,2]
[398964913,1766029841375,-256.0,0.00030055,2]
[398964916,1766029841385,-256.0,0.00030123,2]
[398964917,1766029841394,-577.6,0.00030137,26]
[398964919,1766029841403,-164.78,0.000302,30]
[398964921,1766029841411,-2703.93866681,0.00030286,2]
[398964923,1766029841420,-5225.44266853,0.00030286,2]
[398964925,1766029841429,-256.0,0.00030308,2]
[398964926,1766029841438,-256.0,0.00030356,2]
[398964928,1766029841447,-1207.97,0.00030459,120]
[398964930,1766029841456,-166.66,0.00030955,30]
[398964932,1766029841465,-166.66,0.00031607,30]
[398964933,1766029841474,-153.0,0.00032202,2]
[398964935,1766029841484,-153.0,0.00032229,2]
[398964937,1766029841493,-153.0,0.00032242,2]
[398964939,1766029841502,-166.66,0.00032259,30]
[398964941,1766029841511,-500.0,0.00032866,60]
[398964943,1766029841520,-151.0,0.00032877,31]
[398964944,1766029841529,-156.236012,0.00032877,31]
[398964946,1766029841540,-151.0,0.00032877,31]
[398964948,1766029841549,-151.0,0.00032877,31]
[398964950,1766029841558,-151.000014,0.00032877,31]
[398964952,1766029841567,-151.0,0.00032877,31]
[398964954,1766029841580,-151.0,0.00032877,31]
[398964955,1766029841589,-151.0,0.00032877,31]
[398964957,1766029841599,-151.0,0.00032877,31]
[398964959,1766029841608,-151.0,0.00032877,31]
[398964961,1766029841618,-151.0,0.00032877,31]
[398964963,1766029841627,-151.0,0.00032877,31]
[398964964,1766029841636,-151.0,0.00032877,31]
[398964966,1766029841646,-151.0,0.00032877,31]
[398964968,1766029841655,-279.233627,0.00032877,31]
[398964970,1766029841664,-151.0,0.00032877,31]
[398964972,1766029841673,-151.0,0.00032877,31]
[398964973,1766029841682,-151.0,0.00032877,31]
[398964975,1766029841694,-151.0,0.00032877,31]
[398964977,1766029841704,-151.0,0.00032877,31]
[398964979,1766029841712,-163.429591,0.00032877,31]
[398964981,1766029841721,-151.0,0.00032877,31]
[398964982,1766029841731,-151.0,0.00032877,31]
[398964984,1766029841740,-151.0,0.00032877,31]
[398964986,1766029841750,-151.0,0.00032877,31]
[398964988,1766029841759,-218.834246,0.00032877,31]
[398964990,1766029841768,-151.0,0.00032877,31]
[398964992,1766029841778,-150.0,0.00032877,2]
[398964994,1766029841788,-150.0,0.00032877,2]
[398964996,1766029841798,-151.62481375,0.00032877,2]
[398964997,1766029841807,-150.0,0.00032877,2]
[398964999,1766029841816,-500.0,0.00032877,2]
[398965001,1766029841826,-151.50793938,0.00032877,2]
[398965003,1766029841835,-153.0523712,0.00032877,2]
[398965005,1766029841844,-152.01099923,0.00032877,2]
[398965006,1766029841854,-150.0,0.00032877,2]
[398965008,1766029841865,-150.0,0.00032877,2]
[398965010,1766029841874,-150.0,0.00032877,2]
[398965011,1766029841883,-500.0,0.00032877,2]
[398965013,1766029841892,-500.0,0.00032877,2]
[398965015,1766029841903,-500.0,0.00032877,2]
[398965017,1766029841912,-150.0,0.00032877,2]
[398965019,1766029841921,-150.0,0.00032877,2]
[398965021,1766029841930,-150.0,0.00032877,2]
[398965023,1766029841940,-150.0,0.00032877,2]
[398965025,1766029841950,-500.0,0.00032877,2]
[398965026,1766029841959,-150.0,0.00032877,2]
[398965028,1766029841969,-150.0,0.00032877,2]
[398965030,1766029841978,-150.47949531,0.00032877,2]
[398965032,1766029841988,-150.0,0.00032877,2]
[398965034,1766029841997,-154.21,0.000329,14]
[398965036,1766029842006,-166.66,0.0003291,30]
[398965037,1766029842016,-2703.93866681,0.00032963,2]
[398965039,1766029842025,-5225.44266853,0.00032963,2]
[398965041,1766029842034,-178.23166973,0.00032997,2]
[398965043,1766029842043,-150.0,0.00033014,2]
[398965045,1766029842053,-150.0,0.00033014,2]
[398965047,1766029842063,-150.0,0.00033014,2]
[398965049,1766029842072,-602.75047701,0.00033014,2]
[398965051,1766029842081,-150.0,0.00033014,2]
[398965053,1766029842090,-150.0,0.00033014,2]
[398965054,1766029842099,-150.0,0.00033014,2]
[398965056,1766029842108,-500.0,0.00033014,2]
[398965058,1766029842117,-500.0,0.00033014,2]
[398965060,1766029842126,-500.0,0.00033014,2]
[398965062,1766029842135,-151.50604886,0.00033014,2]
[398965064,1766029842145,-150.0,0.00033014,2]
[398965066,1766029842154,-150.0,0.00033014,2]
[398965068,1766029842163,-150.0,0.00033014,2]
[398965070,1766029842172,-500.0,0.00033014,2]
[398965072,1766029842181,-150.0,0.00033014,2]
[398965073,1766029842190,-150.0,0.00033014,2]
[398965075,1766029842199,-500.0,0.00033122,14]
[398965077,1766029842208,-150.0,0.00033151,2]
[398965079,1766029842218,-150.0,0.00033151,2]
[398965081,1766029842227,-500.0,0.00033151,2]
[398965083,1766029842235,-371.47335781,0.00033151,2]
[398965085,1766029842245,-500.0,0.00033151,2]
[398965087,1766029842254,-150.0,0.00033151,2]
[398965088,1766029842263,-150.0,0.00033151,2]
[398965090,1766029842272,-150.0,0.00033151,2]
[398965092,1766029842281,-503.19,0.00033165,2]
[398965094,1766029842291,-1207.97,0.00033228,120]
[398965096,1766029842300,-150.0,0.00033288,2]
[398965098,1766029842309,-150.0,0.00033288,2]
[398965100,1766029842318,-500.0,0.00033288,2]
[398965102,1766029842328,-153.94831785,0.00033288,2]
[398965104,1766029842337,-150.0,0.00033288,2]
[398965106,1766029842347,-150.0,0.00033288,2]
[398965107,1766029842356,-150.0,0.00033288,2]
[398965109,1766029842365,-4069.09,0.00033294,2]
[398965111,1766029842374,-1000.0,0.00033362,2]
[398965113,1766029842383,-150.0,0.00033425,2]
[398965115,1766029842392,-150.0,0.00033425,2]
[398965117,1766029842401,-500.0,0.00033425,2]
[398965119,1766029842411,-275.12025871,0.00033425,2]
[398965121,1766029842420,-150.0,0.00033425,2]
[398965122,1766029842429,-2043.196332,0.00033551,120]
[398965124,1766029842438,-250.0,0.00033562,2]
[398965126,1766029842447,-250.0,0.00033562,2]
[398965128,1766029842457,-500.0,0.00033562,2]
[398965130,1766029842466,-250.0,0.00033562,2]
[398965132,1766029842475,-166.66,0.00033562,30]
[398965134,1766029842484,-500.0,0.00033699,2]
[398965136,1766029842493,-302.22,0.00033737,2]
[398965138,1766029842502,-500.0,0.00033836,2]
[398965139,1766029842511,-404.50415757,0.00033973,2]
[398965141,1766029842520,-166.66,0.00034214,30]
[398965143,1766029842529,-646.72,0.00034336,30]
[398965145,1766029842539,-433.2,0.00035616,42]
[398965147,1766029842548,-2703.93866681,0.00035641,2]
[398965149,1766029842558,-5225.44266853,0.00035641,2]
[398965151,1766029842567,-151.0,0.00035672,31]
[398965153,1766029842576,-154.21,0.000357,14]
[398965155,1766029842585,-151.0,0.0003589,31]
[398965156,1766029842593,-189.99558,0.0003589,31]
[398965158,1766029842603,-189.99558,0.0003589,31]
[398965160,1766029842614,-189.99558,0.0003589,31]
[398965162,1766029842623,-189.99558,0.0003589,31]
[398965164,1766029842632,-152.685435,0.00035937,31]
[398965166,1766029842641,-156.954637,0.00035937,31]
[398965168,1766029842650,-160.45190843,0.00035944,14]
[398965170,1766029842660,-500.0,0.00035946,60]
[398965172,1766029842668,-500.0,0.00035946,60]
[398965174,1766029842677,-150.0,0.00035946,20]
[398965175,1766029842687,-151.0,0.00035947,31]
[398965177,1766029842698,-151.0,0.00035947,31]
[398965179,1766029842707,-185.044876,0.00035947,31]
[398965181,1766029842716,-151.0,0.00035947,31]
[398965183,1766029842725,-189.99558,0.00035947,31]
[398965185,1766029842734,-189.99558,0.00035947,31]
[398965187,1766029842743,-189.99558,0.00035947,31]
[398965189,1766029842752,-189.99558,0.00035947,31]
[398965190,1766029842761,-151.0,0.00035947,31]
[398965192,1766029842771,-151.0,0.00035947,31]
[398965194,1766029842780,-151.0,0.00035947,31]
[398965196,1766029842789,-153.74603,0.00035947,31]
[398965198,1766029842799,-151.0,0.00035947,31]
[398965200,1766029842808,-151.0,0.00035947,31]
[398965202,1766029842817,-254817.83,0.00035947,2]
[398965204,1766029842825,-664.10507824,0.00036762,2]
[398965206,1766029842835,-211.08544389,0.00036862,2]
[398965207,1766029842844,-150.0,0.00036962,7]
[398965208,1766029842853,-150.0,0.00036962,7]
[398965209,1766029842866,-150.0,0.00036962,7]
[398965210,1766029842875,-150.23286089,0.00036962,7]
[398965211,1766029842884,-205.74864735,0.00036962,7]
[398965212,1766029842892,-150.0,0.00036962,7]
[398965213,1766029842902,-150.0,0.00036962,7]
[398965214,1766029842911,-150.60489648,0.00036962,7]
[398965215,1766029842920,-150.0,0.00036962,7]
[398965216,1766029842930,-150.0,0.00036962,7]
[398965217,1766029842939,-150.0,0.00036962,7]
[398965218,1766029842948,-150.0,0.00036962,7]
[398965219,1766029842957,-150.0,0.00036962,7]
[398965220,1766029842966,-150.0,0.00036962,7]
[398965221,1766029842975,-150.0,0.00036962,7]
[398965224,1766029842984,-205.74864735,0.00037003,7]
[398965226,1766029842993,-205.74864735,0.00037045,7]
[398965228,1766029843002,-205.74864735,0.00037086,7]
[398965230,1766029843011,-150.0,0.00037114,7]
[398965232,1766029843020,-205.74864735,0.00037128,7]
[398965234,1766029843029,-150.0,0.00037148,7]
[398965236,1766029843038,-205.74864735,0.00037169,7]
[398965238,1766029843047,-150.0,0.00037178,7]
[398965240,1766029843056,-150.0,0.0003719,7]
[398965242,1766029843067,-150.0,0.0003719,7]
[398965244,1766029843076,-205.74864735,0.00037211,7]
[398965247,1766029843085,-205.74864735,0.00037252,7]
[398965249,1766029843096,-150.0,0.00037266,7]
[398965251,1766029843105,-150.0,0.00037278,7]
[398965253,1766029843114,-205.74864735,0.00037294,7]
[398965255,1766029843123,-154.21,0.000373,14]
[398965257,1766029843133,-150.0,0.00037335,7]
[398965259,1766029843143,-150.0,0.00037335,7]
[398965261,1766029843152,-205.74864735,0.00037335,7]
[398965263,1766029843161,-205.74864735,0.00037376,7]
[398965265,1766029843170,-150.0,0.00037394,7]
[398965267,1766029843179,-150.0,0.00037418,7]
[398965269,1766029843188,-205.74864735,0.00037418,7]
[398965271,1766029843197,-150.0,0.00037418,7]
[398965273,1766029843206,-150.0,0.00037418,7]
[398965275,1766029843215,-205.74864735,0.00037459,7]
[398965277,1766029843224,-150.0,0.00037475,7]
[398965279,1766029843232,-150.0,0.00037475,7]
[398965281,1766029843241,-205.74864735,0.00037501,7]
[398965283,1766029843250,-150.0,0.00037522,7]
[398965285,1766029843259,-1000.0,0.00037532,2]
[398965287,1766029843269,-205.74864735,0.00037542,7]
[398965289,1766029843279,-800.0,0.00037557,13]
[398965291,1766029843290,-800.0,0.00037557,13]
[398965293,1766029843299,-800.0,0.00037557,13]
[398965295,1766029843308,-800.0,0.00037557,13]
[398965297,1766029843317,-800.0,0.00037557,13]
[398965299,1766029843326,-800.0,0.00037557,13]
[398965301,1766029843335,-800.0,0.00037557,13]
[398965303,1766029843344,-800.0,0.00037557,13]
[398965305,1766029843353,-800.0,0.00037557,13]
[398965307,1766029843363,-800.0,0.00037557,13]
[398965309,1766029843372,-800.0,0.00037557,13]
[398965311,1766029843381,-800.0,0.00037557,13]
[398965313,1766029843391,-800.0,0.00037557,13]
[398965315,1766029843399,-800.0,0.00037557,13]
[398965317,1766029843408,-800.0,0.00037557,13]
[398965319,1766029843417,-800.0,0.00037557,13]
[398965321,1766029843427,-800.0,0.00037557,13]
[398965323,1766029843436,-800.0,0.00037557,13]
[398965325,1766029843445,-800.0,0.00037557,13]
[398965327,1766029843453,-800.0,0.00037557,13]
[398965329,1766029843463,-800.0,0.00037557,13]
[398965330,1766029843472,-800.0,0.00037557,13]
[398965332,1766029843481,-800.0,0.00037557,13]
[398965335,1766029843491,-800.0,0.00037557,13]
[398965337,1766029843500,-800.0,0.00037557,13]
[398965339,1766029843509,-800.0,0.00037557,13]
[398965341,1766029843518,-800.0,0.00037557,13]
[398965343,1766029843527,-800.0,0.00037557,13]
[398965345,1766029843536,-800.0,0.00037557,13]
[398965347,1766029843547,-800.0,0.00037557,13]
[398965349,1766029843556,-800.0,0.00037557,13]
[398965351,1766029843565,-800.0,0.00037557,13]
[398965353,1766029843575,-800.0,0.00037557,13]
[398965355,1766029843584,-800.0,0.00037557,13]
[398965357,1766029843593,-800.0,0.00037557,13]
[398965359,1766029843603,-800.0,0.00037557,13]
[398965361,1766029843612,-800.0,0.00037557,13]
[398965363,1766029843621,-800.0,0.00037557,13]
[398965365,1766029843631,-800.0,0.00037557,13]
[398965367,1766029843640,-800.0,0.00037557,13]
[398965370,1766029843650,-800.0,0.00037557,13]
[398965373,1766029843659,-800.0,0.00037557,13]
[398965375,1766029843668,-800.0,0.00037557,13]
[398965412,1766029844009,-800.0,0.00037557,13]
[398965414,1766029844019,-800.0,0.00037557,13]
[398965416,1766029844029,-800.0,0.00037557,13]
[398965418,1766029844039,-800.0,0.00037557,13]
[398965420,1766029844049,-800.0,0.00037557,13]
[398965422,1766029844058,-800.0,0.00037557,13]
[398965424,1766029844067,-800.0,0.00037557,13]
[398965426,1766029844076,-800.0,0.00037557,13]
[398965428,1766029844086,-800.0,0.00037557,13]
[398965430,1766029844095,-800.0,0.00037557,13]
[398965432,1766029844105,-800.0,0.00037557,13]
[398965434,1766029844114,-800.0,0.00037557,13]
[398965436,1766029844124,-800.0,0.00037557,13]
[398965438,1766029844134,-800.0,0.00037557,13]
[398965440,1766029844144,-800.0,0.00037557,13]
[398965442,1766029844153,-800.0,0.00037557,13]
[398965444,1766029844164,-800.0,0.00037557,13]
[398965446,1766029844173,-800.0,0.00037557,13]
[398965448,1766029844182,-916.0,0.00037557,13]
[398965450,1766029844191,-150.0,0.0003757,7]
[398965452,1766029844201,-205.74864735,0.00037584,7]
[398965454,1766029844210,-150.0,0.00037593,7]
[398965456,1766029844219,-664.10507821,0.0003761,2]
[398965458,1766029844228,-150.0,0.0003761,7]
[398965460,1766029844237,-205.74864735,0.00037625,7]
[398965462,1766029844247,-150.0,0.00037646,7]
[398965464,1766029844259,-150.0,0.00037646,7]
[398965466,1766029844268,-205.74864735,0.00037667,7]
[398965468,1766029844279,-500.22033951,0.000377,120]
[398965470,1766029844289,-150.0,0.00037708,7]
[398965472,1766029844298,-150.0,0.00037708,7]
[398965474,1766029844308,-205.74864735,0.00037708,7]
[398965476,1766029844317,-150.0,0.00037722,7]
[398965478,1766029844326,-205.74864735,0.0003775,7]
[398965480,1766029844335,-205.74864735,0.00037791,7]
[398965482,1766029844344,-500.0,0.00037798,60]
[398965484,1766029844353,-5506.0,0.000378,117]
[398965486,1766029844362,-150.0,0.00037826,7]
[398965488,1766029844371,-205.74864735,0.00037833,7]
[398965490,1766029844380,-150.0,0.00037874,7]
[398965492,1766029844389,-205.74864735,0.00037874,7]
[398965494,1766029844399,-150.0,0.00037874,7]
[398965496,1766029844408,-150.0,0.00037874,7]
[398965498,1766029844417,-150.0,0.00037895,7]
[398965500,1766029844427,-150.0,0.00037909,7]
[398965502,1766029844436,-205.74864735,0.00037916,7]
[398965504,1766029844445,-205.74864735,0.00037957,7]
[398965506,1766029844454,-2000.0,0.0003797,120]
[398965508,1766029844463,-150.0,0.00037988,7]
[398965510,1766029844472,-150.0,0.00037988,7]
[398965512,1766029844486,-150.0,0.00037988,7]
[398965514,1766029844495,-150.0,0.00037988,7]
[398965516,1766029844505,-205.74864735,0.00037999,7]
[398965518,1766029844515,-2000.0,0.00038,38]
[398965520,1766029844524,-150.0,0.00038026,7]
[398965522,1766029844533,-205.74864735,0.0003804,7]
[398965524,1766029844543,-150.0,0.00038042,7]
[398965526,1766029844552,-150.0,0.00038082,7]
[398965528,1766029844561,-150.0,0.00038082,7]
[398965530,1766029844570,-205.74864735,0.00038082,7]
[398965532,1766029844579,-150.0,0.00038102,7]
[398965534,1766029844590,-150.0,0.00038102,7]
[398965537,1766029844600,-205.74864735,0.00038123,7]
[398965539,1766029844610,-205.74864735,0.00038165,7]
[398965541,1766029844619,-150.0,0.00038178,7]
[398965543,1766029844628,-205.74864735,0.00038206,7]
[398965545,1766029844637,-10000.0,0.00038218,2]
[398965547,1766029844646,-150.0,0.00038225,7]
[398965549,1766029844655,-205.74864735,0.00038248,7]
[398965551,1766029844665,-150.0,0.00038259,7]
[398965553,1766029844678,-150.0,0.00038268,7]
[398965555,1766029844687,-241.79358892,0.00038279,10]
[398965557,1766029844696,-205.74864735,0.00038289,7]
[398965559,1766029844706,-2703.93866681,0.00038318,2]
[398965561,1766029844715,-5225.44266853,0.00038318,2]
[398965563,1766029844724,-150.0,0.00038331,7]
[398965565,1766029844734,-205.74864735,0.00038331,7]
[398965567,1766029844743,-150.0,0.00038331,7]
[398965569,1766029844752,-150.0,0.00038331,7]
[398965571,1766029844761,-3815.14,0.00038356,120]
[398965573,1766029844770,-276.324511,0.00038356,120]
[398965575,1766029844779,-205.74864735,0.00038372,7]
[398965577,1766029844788,-205.74864735,0.00038414,7]
[398965579,1766029844797,-150.0,0.00038455,7]
[398965581,1766029844807,-150.0,0.00038455,7]
[398965583,1766029844816,-205.74864735,0.00038455,7]